bitfinex/quotes_SOLUSD_20220129
["timestamp","ask_amount","ask_price","bid_price","bid_amount"]
[1643480805922,6.0,94.638,94.582,6.0]
[1643480806323,6.0,94.638,94.583,0.25]
[1643480806524,6.0,94.638,94.592,36.61487817]
[1643480806925,6.0,94.638,94.602,6.0]
[1643480807323,6.0,94.638,94.603,0.25]
[1643480808322,6.0,94.638,94.593,0.25]
[1643480808525,6.0,94.638,94.592,36.61487817]
[1643480808725,6.0,94.638,94.593,0.25]
[1643480809524,6.0,94.638,94.563,24.577]
[1643480809725,23.2092,94.637,94.563,24.577]
[1643480810024,23.2092,94.637,94.571,0.25]
[1643480810025,6.0,94.627,94.571,0.25]
[1643480810227,22.9592,94.626,94.571,0.25]
[1643480810427,23.2092,94.626,94.571,34.94516403]
[1643480810855,6.0,94.616,94.571,34.94516403]
[1643480811258,23.2092,94.626,94.571,34.94516403]
[1643480811458,22.9592,94.626,94.571,34.94516403]
[1643480811658,1.46499103,94.668,94.571,34.94516403]
[1643480811856,0.25,94.667,94.571,34.94516403]
[1643480812059,6.25,94.667,94.571,34.94516403]
[1643480812459,22.7023,94.666,94.571,34.94516403]
[1643480812863,6.0,94.656,94.571,34.94516403]
[1643480813060,22.7023,94.655,94.571,34.94516403]
[1643480813360,22.9523,94.655,94.571,34.94516403]
[1643480813560,6.0,94.645,94.571,34.94516403]
[1643480813760,24.7096,94.644,94.571,34.94516403]
[1643480814161,6.0,94.634,94.571,34.94516403]
[1643480814360,0.25,94.633,94.571,34.94516403]
[1643480816161,24.5933,94.633,94.571,34.94516403]
[1643480816362,24.5933,94.633,94.571,0.25]
[1643480816564,6.0,94.623,94.571,0.25]
[1643480816763,0.25,94.622,94.564,0.25]
[1643480816966,6.0,94.623,94.564,0.25]
[1643480817162,0.25,94.622,94.564,0.25]
[1643480817364,22.7396,94.622,94.564,39.09156507]
[1643480817564,6.0,94.612,94.564,39.09156507]
[1643480818164,32.3796,94.622,94.564,39.09156507]
[1643480818365,9.64,94.622,94.564,39.09156507]
[1643480818565,6.0,94.612,94.564,39.09156507]
[1643480818767,9.64,94.622,94.564,38.84156507]
[1643480819165,6.0,94.612,94.564,38.84156507]
[1643480819766,0.25,94.621,94.564,38.84156507]
[1643480819967,6.0,94.612,94.564,38.84156507]
[1643480820168,6.0,94.612,94.565,0.25]
[1643480821667,6.0,94.653,94.565,0.25]
[1643480821867,31.1951,94.652,94.565,0.25]
[1643480823672,31.1951,94.652,94.564,38.84156507]
[1643480824071,31.1951,94.652,94.565,2.24246651]
[1643480824472,6.0,94.65,94.575,6.0]
[1643480824671,31.1951,94.652,94.575,6.0]
[1643480824874,31.1951,94.652,94.576,22.904]
[1643480825071,31.1951,94.652,94.576,23.154]
[1643480825976,30.9451,94.652,94.576,23.154]
[1643480826272,30.9451,94.652,94.576,22.904]
[1643480827275,30.9451,94.652,94.577,0.25]
[1643480827675,0.25,94.651,94.577,0.25]
[1643480830210,30.9451,94.652,94.577,0.25]
[1643480830809,0.25,94.651,94.577,0.25]
[1643480832411,6.25,94.651,94.577,0.25]
[1643480832611,6.0,94.641,94.577,0.25]
[1643480832818,24.1277,94.64,94.577,0.25]
[1643480833011,6.0,94.63,94.577,0.25]
[1643480833420,6.0,94.63,94.574,1.46164754]
[1643480833613,6.0,94.63,94.569,1.46164754]
[1643480833811,6.0,94.648,94.569,1.46164754]
[1643480834016,6.0,94.644,94.57,1.46164754]
[1643480834313,6.0,94.644,94.574,6.0]
[1643480834614,0.25,94.643,94.574,6.0]
[1643480834811,0.25,94.643,94.575,23.8456]
[1643480835615,0.25,94.644,94.585,6.0]
[1643480835816,0.25,94.644,94.586,0.25]
[1643480836414,0.25,94.645,94.586,0.25]
[1643480837013,6.0,94.636,94.586,0.25]
[1643480837414,0.25,94.635,94.586,0.25]
[1643480837615,0.25,94.635,94.585,6.0]
[1643480837815,0.25,94.635,94.586,0.25]
[1643480838318,0.25,94.635,94.576,0.25]
[1643480838516,0.25,94.643,94.576,0.25]
[1643480839615,0.25,94.643,94.575,0.25]
[1643480839816,0.25,94.643,94.565,23.2688]
[1643480839817,24.5985,94.643,94.569,1.46164754]
[1643480840016,6.0,94.633,94.565,23.2688]
[1643480840215,6.0,94.633,94.564,40.30321261]
[1643480840216,0.25,94.632,94.564,40.30321261]
[1643480840417,0.25,94.632,94.565,0.25]
[1643480840821,0.25,94.632,94.565,2.49246651]
[1643480841018,0.25,94.632,94.565,0.25]
[1643480841619,0.25,94.632,94.564,38.84156507]
[1643480842020,6.0,94.625,94.564,38.84156507]
[1643480843323,6.0,94.625,94.565,0.25]
[1643480843520,23.6139,94.632,94.565,0.25]
[1643480843919,23.6139,94.632,94.574,6.0]
[1643480844321,23.6139,94.632,94.575,0.25]
[1643480844521,23.6139,94.632,94.576,6.0]
[1643480844921,6.0,94.622,94.565,23.9218]
[1643480845122,6.0,94.622,94.567,0.25]
[1643480846225,6.0,94.622,94.566,0.25]
[1643480848329,454.0,94.635,94.566,0.25]
[1643480848528,0.25,94.634,94.575,6.0]
[1643480848726,0.25,94.641,94.575,6.0]
[1643480848928,6.0,94.632,94.566,0.25]
[1643480849127,6.0,94.632,94.568,0.25]
[1643480849328,6.0,94.632,94.566,0.25]
[1643480849628,6.0,94.632,94.567,1.46164754]
[1643480849831,6.0,94.632,94.568,0.25]
[1643480850033,6.0,94.632,94.567,1.46164754]
[1643480850330,6.0,94.632,94.568,0.25]
[1643480850631,0.25,94.631,94.577,6.0]
[1643480850932,6.0,94.632,94.578,0.25]
[1643480851134,6.0,94.631,94.578,6.25]
[1643480851329,6.0,94.631,94.578,0.25]
[1643480851935,0.25,94.63,94.578,0.25]
[1643480852130,6.0,94.631,94.568,1.71164754]
[1643480853330,22.8986,94.63,94.568,0.25]
[1643480853734,22.8986,94.63,94.566,0.25]
[1643480854132,6.0,94.62,94.566,0.25]
[1643480855034,6.0,94.62,94.564,0.25]
[1643480855232,6.0,94.62,94.563,0.25]
[1643480855834,6.0,94.62,94.562,0.25]
[1643480857437,6.0,94.62,94.562,1.71164754]
[1643480857637,6.0,94.62,94.562,1.46164754]
[1643480857837,6.0,94.62,94.563,0.25]
[1643480859843,23.9873,94.619,94.561,0.25]
[1643480860043,6.0,94.609,94.561,0.25]
[1643480863366,6.0,94.609,94.56,0.25]
[1643480863571,6.0,94.609,94.56,42.44985268]
[1643480863768,6.0,94.609,94.56,43.91150022]
[1643480864574,6.0,94.609,94.567,1.46164754]
[1643480864771,23.7373,94.619,94.568,0.25]
[1643480864973,6.0,94.609,94.565,1.46164754]
[1643480865171,6.0,94.609,94.565,0.25]
[1643480865872,6.0,94.609,94.565,1.71164754]
[1643480866277,6.0,94.616,94.565,0.25]
[1643480866873,6.0,94.615,94.565,0.25]
[1643480867675,6.0,94.616,94.565,0.25]
[1643480867878,6.0,94.616,94.565,1.71164754]
[1643480868075,6.0,94.616,94.575,6.0]
[1643480868276,6.0,94.616,94.576,0.25]
[1643480868575,454.0,94.626,94.584,6.0]
[1643480868778,454.0,94.642,94.585,0.25]
[1643480868981,23.5903,94.641,94.576,1.71164754]
[1643480869176,6.0,94.632,94.576,1.71164754]
[1643480869377,6.0,94.631,94.576,1.71164754]
[1643480869777,6.0,94.631,94.576,0.25]
[1643480870476,0.25,94.63,94.57,15.33]
[1643480870676,454.0,94.627,94.57,15.33]
[1643480870877,0.25,94.626,94.57,15.33]
[1643480871078,6.0,94.617,94.57,15.33]
[1643480871677,6.0,94.619,94.57,15.33]
[1643480872077,6.0,94.619,94.571,0.25]
[1643480874382,454.0,94.624,94.571,0.25]
[1643480874383,23.4302,94.618,94.571,0.25]
[1643480874580,6.0,94.608,94.567,0.25]
[1643480875181,6.0,94.608,94.565,1.46164754]
[1643480875383,6.0,94.608,94.566,0.25]
[1643480876484,6.0,94.608,94.561,1.46164754]
[1643480876684,454.0,94.592,94.561,1.46164754]
[1643480876883,454.0,94.59,94.554,1.46164754]
[1643480877083,6.0,94.58,94.552,1.46164754]
[1643480877383,6.0,94.58,94.546,1.46164754]
[1643480877582,6.0,94.58,94.523,16.41271654]
[1643480877583,454.0,94.587,94.545,1.46164754]
[1643480877784,454.0,94.606,94.546,1.46164754]
[1643480877983,454.0,94.606,94.547,1.46164754]
[1643480877984,6.0,94.577,94.547,1.46164754]
[1643480878382,5.9,94.577,94.547,1.46164754]
[1643480878584,13.37,94.579,94.542,1.46164754]
[1643480878982,13.37,94.579,94.543,1.46164754]
[1643480879386,13.37,94.579,94.539,1.46164754]
[1643480879784,13.37,94.579,94.54,0.25]
[1643480879985,12.01,94.598,94.54,0.25]
[1643480880186,454.0,94.599,94.54,1.71164754]
[1643480880387,6.0,94.588,94.54,0.25]
[1643480880584,6.0,94.589,94.54,0.25]
[1643480880987,6.0,94.595,94.54,0.25]
[1643480881188,6.0,94.59,94.54,0.25]
[1643480881384,23.0135,94.589,94.54,0.25]
[1643480882387,23.0135,94.589,94.539,0.25]
[1643480882787,23.0135,94.589,94.539,1.71164754]
[1643480882990,23.0135,94.589,94.539,1.46164754]
[1643480883189,0.25,94.588,94.536,1.46164754]
[1643480883390,0.25,94.588,94.534,6.0]
[1643480883790,0.25,94.588,94.535,1.46164754]
[1643480883989,0.25,94.588,94.534,7.46164754]
[1643480884294,454.0,94.585,94.534,7.46164754]
[1643480884490,454.0,94.587,94.534,6.0]
[1643480884895,0.25,94.586,94.533,1.46164754]
[1643480885092,454.25,94.586,94.532,1.46164754]
[1643480885293,454.25,94.586,94.533,0.25]
[1643480885893,454.25,94.586,94.53,0.25]
[1643480886494,454.25,94.586,94.522,1.46164754]
[1643480886697,454.25,94.586,94.523,1.46164754]
[1643480886899,454.25,94.586,94.522,1.46164754]
[1643480887096,454.25,94.586,94.52,6.0]
[1643480887097,454.25,94.586,94.532,6.0]
[1643480887297,454.25,94.586,94.531,6.0]
[1643480887698,454.25,94.586,94.531,8.23659091]
[1643480887902,454.25,94.586,94.532,0.25]
[1643480888300,454.25,94.586,94.521,0.25]
[1643480888500,6.0,94.576,94.521,0.25]
[1643480888703,6.0,94.576,94.52,0.25]
[1643480888902,454.0,94.571,94.519,0.25]
[1643480889102,454.0,94.574,94.519,0.25]
[1643480889530,6.0,94.564,94.516,1.46164754]
[1643480889727,6.0,94.564,94.518,0.25]
[1643480889930,454.0,94.55,94.509,1.46164754]
[1643480890129,454.0,94.563,94.509,1.46164754]
[1643480890328,22.7813,94.562,94.507,1.46164754]
[1643480890528,454.0,94.55,94.507,1.46164754]
[1643480890737,454.0,94.561,94.517,6.0]
[1643480890929,454.0,94.561,94.515,6.0]
[1643480891129,454.0,94.561,94.516,6.0]
[1643480891331,454.0,94.561,94.516,6.25]
[1643480892431,454.0,94.561,94.516,0.25]
[1643480892632,0.25,94.56,94.516,0.25]
[1643480892836,454.0,94.548,94.506,0.25]
[1643480893132,454.0,94.558,94.506,0.25]
[1643480893335,0.25,94.557,94.506,0.25]
[1643480893532,454.0,94.547,94.506,0.25]
[1643480893732,24.7721,94.546,94.506,0.25]
[1643480894337,24.7721,94.546,94.515,6.0]
[1643480894832,24.7721,94.546,94.516,0.25]
[1643480895234,454.0,94.547,94.516,0.25]
[1643480895434,105.8,94.6,94.516,0.25]
[1643480895634,454.0,94.556,94.516,0.25]
[1643480895832,6.0,94.59,94.515,6.0]
[1643480895833,454.0,94.566,94.515,6.0]
[1643480896033,23.4083,94.565,94.515,6.0]
[1643480896232,454.0,94.555,94.516,0.25]
[1643480896432,454.0,94.564,94.516,0.25]
[1643480896633,6.0,94.554,94.516,0.25]
[1643480897535,6.0,94.554,94.505,23.5655]
[1643480897536,6.0,94.554,94.506,0.25]
[1643480897735,460.0,94.554,94.506,0.25]
[1643480897939,454.0,94.554,94.506,0.25]
[1643480898140,6.0,94.544,94.506,0.25]
[1643480898536,6.0,94.543,94.506,0.25]
[1643480899238,6.0,94.543,94.498,0.25]
[1643480900240,6.0,94.543,94.507,6.0]
[1643480900440,6.0,94.543,94.506,6.0]
[1643480900639,6.0,94.543,94.507,6.0]
[1643480900840,6.0,94.543,94.507,6.25]
[1643480901443,6.0,94.543,94.507,0.25]
[1643480901842,6.0,94.543,94.498,0.25]
[1643480902042,6.0,94.543,94.507,6.0]
[1643480902243,6.0,94.543,94.508,0.25]
[1643480903249,6.0,94.543,94.496,1.46164754]
[1643480903446,6.0,94.543,94.481,2.23659091]
[1643480903447,6.0,94.543,94.49,16.79164754]
[1643480903647,454.0,94.539,94.493,1.46164754]
[1643480903847,454.0,94.542,94.492,1.46164754]
[1643480904047,454.0,94.542,94.493,1.46164754]
[1643480904647,454.0,94.542,94.494,1.71164754]
[1643480904847,454.0,94.542,94.495,1.71164754]
[1643480905050,454.0,94.542,94.495,1.46164754]
[1643480905248,454.0,94.542,94.494,1.46164754]
[1643480905448,454.0,94.542,94.496,1.46164754]
[1643480905648,454.0,94.542,94.493,1.46164754]
[1643480905848,454.0,94.542,94.492,0.25]
[1643480905849,454.0,94.542,94.494,0.25]
[1643480906052,454.0,94.542,94.492,1.71164754]
[1643480906450,454.0,94.542,94.497,1.46164754]
[1643480906750,454.0,94.542,94.502,1.46164754]
[1643480907150,454.0,94.542,94.503,0.25]
[1643480908351,454.0,94.542,94.499,0.25]
[1643480908751,454.0,94.516,94.5,2.23659091]
[1643480908953,454.0,94.543,94.509,40.34515871]
[1643480909153,47.2757,94.599,94.509,40.34515871]
[1643480909154,454.0,94.598,94.52,15.33]
[1643480909353,0.25,94.597,94.522,1.46164754]
[1643480909552,0.25,94.597,94.532,6.0]
[1643480909756,454.0,94.558,94.533,0.25]
[1643480909956,454.0,94.596,94.533,0.25]
[1643480910353,6.0,94.586,94.533,0.25]
[1643480910557,454.0,94.566,94.533,0.25]
[1643480910755,454.0,94.585,94.533,0.25]
[1643480910955,22.6659,94.584,94.522,23.1892]
[1643480911155,454.0,94.573,94.521,0.25]
[1643480911357,22.6659,94.584,94.521,0.25]
[1643480911358,22.6659,94.572,94.521,0.25]
[1643480911558,22.6659,94.572,94.521,24.90084754]
[1643480914163,22.6659,94.572,94.521,1.71164754]
[1643480916191,22.6659,94.572,94.521,0.25]
[1643480916585,22.6659,94.572,94.53,6.0]
[1643480916886,22.6659,94.572,94.531,0.25]
[1643480917590,22.6659,94.572,94.521,1.46164754]
[1643480917791,454.0,94.551,94.52,15.33]
[1643480917989,454.0,94.561,94.53,6.0]
[1643480918186,454.0,94.551,94.53,6.0]
[1643480918387,454.0,94.541,94.51,15.33]
[1643480918594,454.0,94.548,94.52,6.0]
[1643480918788,454.0,94.571,94.52,6.0]
[1643480918988,454.0,94.571,94.51,15.33]
[1643480919389,454.0,94.571,94.511,2.24868797]
[1643480919689,454.0,94.571,94.511,0.25]
[1643480921791,6.0,94.561,94.511,0.25]
[1643480921990,454.0,94.543,94.511,0.25]
[1643480922195,454.0,94.56,94.511,0.25]
[1643480922391,454.0,94.56,94.487,2.24868797]
[1643480922392,24.201,94.559,94.487,2.24868797]
[1643480922593,454.0,94.513,94.497,6.0]
[1643480922793,5.73370343,94.51,94.497,6.0]
[1643480922993,454.0,94.548,94.497,6.0]
[1643480922994,24.1986,94.547,94.497,6.0]
[1643480923195,24.1986,94.547,94.477,6.0]
[1643480923392,24.1986,94.547,94.478,0.25]
[1643480923393,6.0,94.537,94.478,0.25]
[1643480923601,454.0,94.502,94.478,0.25]
[1643480923794,454.0,94.536,94.478,0.25]
[1643480923998,6.0,94.526,94.478,0.25]
[1643480924397,6.0,94.526,94.479,2.24868797]
[1643480924598,454.0,94.502,94.479,2.24868797]
[1643480924796,454.0,94.525,94.48,0.25]
[1643480925499,454.0,94.545,94.465,25.10128797]
[1643480925998,6.0,94.535,94.465,25.10128797]
[1643480926197,0.25,94.544,94.465,25.10128797]
[1643480926397,454.0,94.513,94.465,25.10128797]
[1643480926597,454.0,94.534,94.465,25.10128797]
[1643480926797,454.0,94.534,94.466,0.25]
[1643480927001,6.0,94.524,94.465,2.24868797]
[1643480927201,454.0,94.514,94.466,2.24868797]
[1643480927400,454.0,94.523,94.464,115.59830531]
[1643480927601,6.0,94.513,94.464,115.59830531]
[1643480927802,454.0,94.503,94.464,115.59830531]
[1643480928002,454.0,94.512,94.464,115.59830531]
[1643480928403,454.0,94.512,94.465,0.25]
[1643480928904,454.0,94.512,94.474,6.0]
[1643480929104,454.0,94.521,94.474,6.0]
[1643480930205,6.0,94.511,94.465,0.25]
[1643480930405,6.0,94.511,94.452,2.24868797]
[1643480930406,6.0,94.511,94.453,0.25]
[1643480930712,24.5872,94.522,94.453,0.25]
[1643480930713,454.0,94.486,94.453,0.25]
[1643480930906,454.0,94.521,94.453,0.25]
[1643480931108,6.0,94.511,94.453,2.49868797]
[1643480931307,454.0,94.477,94.454,0.25]
[1643480931523,454.0,94.509,94.454,0.25]
[1643480931712,454.0,94.481,94.454,0.25]
[1643480932007,454.0,94.468,94.446,6.0]
[1643480932208,454.0,94.509,94.446,6.0]
[1643480932406,0.25,94.508,94.446,6.0]
[1643480932607,6.0,94.499,94.434,6.0]
[1643480932808,0.25,94.498,94.434,6.0]
[1643480933007,454.0,94.46,94.434,6.0]
[1643480933210,454.0,94.498,94.435,0.25]
[1643480933408,454.0,94.498,94.425,0.25]
[1643480933607,454.0,94.48,94.435,2.24868797]
[1643480933807,454.0,94.539,94.436,0.25]
[1643480934008,6.0,94.529,94.436,0.25]
[1643480934213,23.9546,94.528,94.437,2.24868797]
[1643480934437,454.0,94.473,94.438,0.25]
[1643480934609,6.0,94.518,94.438,0.25]
[1643480934808,454.0,94.46,94.446,6.0]
[1643480935010,5.73370343,94.46,94.446,6.0]
[1643480935213,5.73370343,94.46,94.447,0.25]
[1643480936312,454.0,94.459,94.435,0.25]
[1643480936910,454.0,94.514,94.435,0.25]
[1643480937215,454.0,94.514,94.435,23.4518]
[1643480937610,454.0,94.514,94.445,6.0]
[1643480937809,454.0,94.514,94.446,0.25]
[1643480940417,454.0,94.514,94.445,6.0]
[1643480940620,454.0,94.514,94.435,25.45048797]
[1643480940818,454.0,94.514,94.445,6.0]
[1643480941819,454.0,94.514,94.446,0.25]
[1643480943243,454.0,94.514,94.446,2.49242553]
[1643480943646,454.0,94.514,94.456,6.0]
[1643480943842,454.0,94.469,94.458,105.8]
[1643480944044,454.0,94.469,94.468,6.0]
[1643480944242,454.0,94.577,94.468,6.25]
[1643480944444,105.8,94.576,94.469,24.4999]
[1643480944743,6.0,94.567,94.469,30.7499]
[1643480944946,6.0,94.566,94.469,26.99232553]
[1643480945145,23.8284,94.565,94.479,6.0]
[1643480945344,477.8284,94.565,94.48,0.25]
[1643480946044,6.0,94.555,94.48,0.25]
[1643480946445,460.0,94.555,94.48,0.25]
[1643480946645,0.25,94.554,94.48,0.25]
[1643480946844,478.8781,94.554,94.48,0.25]
[1643480948045,454.0,94.554,94.48,0.25]
[1643480948851,6.0,94.544,94.48,0.25]
[1643480949148,454.0,94.492,94.48,0.25]
[1643480949348,454.0,94.577,94.48,22.9619]
[1643480949551,6.0,94.567,94.49,6.0]
[1643480949752,454.0,94.491,94.49,6.0]
[1643480949952,454.0,94.565,94.49,6.0]
[1643480950156,24.8016,94.564,94.49,6.0]
[1643480950355,454.0,94.491,94.48,0.25]
[1643480950553,454.0,94.554,94.48,0.25]
[1643480950760,24.8016,94.553,94.48,0.25]
[1643480952856,24.8016,94.553,94.47,6.0]
[1643480953057,454.0,94.473,94.47,6.0]
[1643480953258,454.0,94.472,94.47,6.0]
[1643480953459,454.0,94.552,94.47,6.0]
[1643480953660,6.0,94.542,94.46,0.32155925]
[1643480953860,0.25,94.541,94.46,6.32155925]
[1643480954059,23.1911,94.541,94.46,6.32155925]
[1643480954460,6.0,94.531,94.46,6.32155925]
[1643480954660,22.9982,94.53,94.46,6.32155925]
[1643480954860,454.0,94.465,94.46,6.32155925]
[1643480955065,454.0,94.529,94.46,6.32155925]
[1643480956364,454.0,94.529,94.462,6.0]
[1643480956562,454.0,94.529,94.47,6.0]
[1643480957164,6.0,94.519,94.462,6.0]
[1643480957564,6.0,94.519,94.457,6.0]
[1643480957764,24.3054,94.518,94.457,6.0]
[1643480957965,24.3054,94.518,94.44,15.33]
[1643480958165,454.0,94.453,94.44,15.33]
[1643480958366,454.0,94.451,94.446,16.8504776]
[1643480958565,460.0,94.508,94.44,15.33]
[1643480958767,25.124,94.507,94.44,15.33]
[1643480958969,478.874,94.507,94.45,5.0]
[1643480959165,454.0,94.507,94.451,36.29267347]
[1643480959366,454.0,94.539,94.451,38.53616458]
[1643480959566,454.0,94.539,94.452,23.5306]
[1643480960369,454.0,94.539,94.462,6.0]
[1643480961868,24.0617,94.54,94.462,6.0]
[1643480962071,4.32051718,94.615,94.557,19.17999999]
[1643480962370,0.08956394,94.715,94.648,5.50533397]
[1643480962570,0.00018484,94.686,94.66,15.33]
[1643480962768,0.00018484,94.686,94.669,0.32183978]
[1643480962968,0.00018484,94.686,94.68,15.33]
[1643480963269,0.00018484,94.686,94.681,0.25]
[1643480964372,0.00018484,94.686,94.68,183.96783135]
[1643480964568,0.00018484,94.686,94.68,187.07524408]
[1643480964774,0.00018484,94.686,94.575,190.29723086]
[1643480964969,0.00018484,94.686,94.63,15.33]
[1643480965168,2.95669142,94.685,94.59,201.59]
[1643480965370,2.95669142,94.685,94.58,37.39046539]
[1643480965568,0.71,94.675,94.58,22.06046539]
[1643480965778,0.25,94.684,94.59,15.33]
[1643480965969,0.25,94.684,94.58,22.06046539]
[1643480966170,2.95669142,94.683,94.58,22.06046539]
[1643480966370,0.25,94.682,94.597,46.7287294]
[1643480966570,0.25,94.682,94.58,22.06046539]
[1643480967472,0.25,94.682,94.583,37.36187933]
[1643480967671,6.0,94.683,94.583,37.36187933]
[1643480967871,0.25,94.682,94.583,37.36187933]
[1643480968876,0.25,94.682,94.593,6.0]
[1643480969076,45.6987,94.682,94.584,0.25]
[1643480969480,6.0,94.672,94.585,6.0]
[1643480969881,0.25,94.671,94.586,0.25]
[1643480970280,0.25,94.671,94.587,37.77858207]
[1643480970480,6.0,94.672,94.588,0.25]
[1643480970683,45.4487,94.682,94.597,6.0]
[1643480970881,6.0,94.672,94.598,0.25]
[1643480971681,6.0,94.68,94.598,0.25]
[1643480971988,0.25,94.671,94.598,0.25]
[1643480972183,454.0,94.67,94.588,6.0]
[1643480972382,0.25,94.669,94.589,0.25]
[1643480972583,454.25,94.669,94.589,0.25]
[1643480972784,454.0,94.669,94.589,0.25]
[1643480972984,460.0,94.68,94.589,0.25]
[1643480973683,460.0,94.68,94.59,2.245459]
[1643480973885,460.0,94.68,94.591,0.25]
[1643480974084,460.0,94.68,94.6,6.0]
[1643480974284,0.25,94.679,94.601,0.25]
[1643480974490,457.20669142,94.679,94.591,0.25]
[1643480974685,457.20669142,94.679,93.309,0.2]
[1643480974686,108.75669142,94.678,94.52,16.18596071]
[1643480974887,105.8,94.668,94.52,15.863]
[1643480975087,15.33,94.66,94.521,41.1448681]
[1643480975286,454.0,94.555,94.521,43.3903271]
[1643480975487,454.0,94.657,94.521,43.3903271]
[1643480975709,454.0,94.658,94.522,2.245459]
[1643480975910,6.0,94.647,94.522,21.53553348]
[1643480976112,6.0,94.647,94.532,6.0]
[1643480976311,454.0,94.544,94.533,106.05]
[1643480976512,454.0,94.645,94.533,112.05]
[1643480976712,454.0,94.645,94.533,114.295459]
[1643480976913,6.0,94.635,94.534,2.245459]
[1643480977115,454.0,94.554,94.544,6.0]
[1643480977314,6.0,94.635,94.544,6.0]
[1643480977315,454.0,94.634,94.544,6.0]
[1643480977512,6.0,94.624,94.545,0.25]
[1643480977915,460.0,94.624,94.545,0.25]
[1643480978316,460.0,94.624,94.546,2.245459]
[1643480978515,460.0,94.624,94.556,6.0]
[1643480979117,460.0,94.624,94.557,0.25]
[1643480980317,460.0,94.624,94.54,0.25]
[1643480980519,0.25,94.623,94.541,6.0]
[1643480980718,454.0,94.623,94.542,0.25]
[1643480981122,454.0,94.623,94.549,6.0]
[1643480981318,454.0,94.623,94.55,0.25]
[1643480982619,454.0,94.623,94.534,6.0]
[1643480982820,454.0,94.623,94.542,0.25]
[1643480983919,454.0,94.623,94.544,6.0]
[1643480984419,454.0,94.623,94.545,0.25]
[1643480985721,454.0,94.623,94.526,106.05]
[1643480985920,454.0,94.623,94.527,5.01474868]
[1643480986122,454.0,94.623,94.528,105.8]
[1643480986322,454.0,94.623,94.528,125.34007448]
[1643480986521,454.0,94.623,94.529,5.01444707]
[1643480986724,454.0,94.623,94.53,105.8]
[1643480986922,454.0,94.623,94.539,6.0]
[1643480987122,454.0,94.623,94.541,6.0]
[1643480987522,454.0,94.623,94.55,6.0]
[1643480987724,454.0,94.623,94.542,7.52441564]
[1643480987923,454.0,94.623,94.552,6.0]
[1643480988424,454.0,94.623,94.553,0.25]
[1643480989426,454.0,94.623,94.541,0.25]